bitfinex-derivatives/quotes_SOLF0:USTF0_20241025
["timestamp","ask_amount","ask_price","bid_price","bid_amount"]
[1729816423951,2.8269,176.95,176.92,2.8273]
[1729816424450,12.18489592,176.93,176.85,1.13048]
[1729816424642,2.8277,176.91,176.83,6.85048]
[1729816425040,2.8277,176.91,176.83,1.13048]
[1729816425346,2.8277,176.9,176.86,2.8282]
[1729816425748,12.18489592,176.9,176.83,6.85048]
[1729816427251,12.18489592,176.9,176.85,2.8285]
[1729816427252,2.828,176.89,176.85,2.8285]
[1729816427848,2.828,176.88,176.84,2.8286]
[1729816428249,12.18489592,176.9,176.82,2.30808]
[1729816428552,12.18489592,176.87,176.8,1.13048]
[1729816428751,12.18489592,176.87,176.79,5.72]
[1729816428948,12.18489592,176.87,176.79,6.85048]
[1729816429544,2.8284,176.86,176.82,2.8288]
[1729816429852,2.8284,176.86,176.79,6.85048]
[1729816430052,17.90489592,176.9,176.79,19.03537592]
[1729816430552,5.72,176.9,176.82,12.18489592]
[1729816430755,12.18489592,176.92,176.82,12.18489592]
[1729816431056,12.18489592,176.92,176.83,3.6913]
[1729816431361,2.8277,176.91,176.84,5.72]
[1729816432058,2.8277,176.91,176.87,2.8281]
[1729816432557,2.8277,176.91,176.84,19.03537592]
[1729816433253,12.18489592,176.94,176.84,19.03537592]
[1729816433451,12.18489592,176.92,176.84,6.85048]
[1729816433649,12.18489592,176.92,176.85,2.8284]
[1729816434053,12.18489592,176.9,176.84,5.72]
[1729816434557,2.8281,176.88,176.84,8.5485]
[1729816434758,2.8281,176.88,176.84,5.72]
[1729816436251,2.8281,176.88,176.85,2.8284]
[1729816440154,12.18489592,176.9,176.85,2.8284]
[1729816440361,2.8278,176.89,176.83,1.257]
[1729816441261,2.8278,176.89,176.86,2.8283]
[1729816441557,2.8278,176.89,176.83,1.257]
[1729816443359,12.18489592,176.9,176.83,1.257]
[1729816444152,2.8282,176.87,176.83,2.8287]
[1729816444359,12.18489592,176.9,176.72,5.6611]
[1729816444360,17.62489592,176.9,176.78,6.57048]
[1729816444561,17.62489592,176.9,176.78,5.44]
[1729816444754,12.18489592,176.88,176.78,6.57048]
[1729816445248,2.8286,176.85,176.81,2.829]
[1729816446061,2.8286,176.85,176.78,6.57048]
[1729816446262,2.8281,176.88,176.79,12.18489592]
[1729816446958,2.8282,176.87,176.83,2.8287]
[1729816448762,2.8282,176.87,176.82,2.8288]
[1729816448964,2.8282,176.87,176.81,1.13048]
[1729816449360,12.18489592,176.93,176.84,12.18489592]
[1729816450263,2.8277,176.91,176.84,13.31537592]
[1729816450961,2.8277,176.91,176.87,2.8281]
[1729816451164,2.8277,176.91,176.84,13.31537592]
[1729816451374,13.34069592,176.97,176.9,2.8276]
[1729816451560,5.44,176.96,176.89,12.18489592]
[1729816451859,2.827,176.95,176.89,12.18489592]
[1729816452066,2.827,176.95,176.91,2.8274]
[1729816452760,12.18489592,176.95,176.89,2.8277]
[1729816453659,2.8277,176.9,176.87,2.8281]
[1729816453859,2.8277,176.9,176.84,5.44]
[1729816454060,12.18489592,176.9,176.84,5.44]
[1729816454363,2.8282,176.87,176.84,5.44]
[1729816455060,2.8282,176.87,176.83,2.8287]
[1729816455860,12.18489592,176.86,176.75,12.18489592]
[1729816456055,5.44,176.91,176.75,6.7084]
[1729816456056,12.18489592,176.83,176.75,6.7084]
[1729816456268,15.01379592,176.83,176.78,2.8296]
[1729816456464,12.18489592,176.83,176.78,2.8296]
[1729816456761,12.18489592,176.81,176.71,1.2577]
[1729816456965,2.8296,176.78,176.73,2.8304]
[1729816457262,12.18489592,176.81,176.72,5.44]
[1729816457667,2.8297,176.78,176.73,2.8303]
[1729816458969,2.8299,176.77,176.71,6.6977]
[1729816459276,2.8299,176.77,176.71,5.44]
[1729816459967,2.8299,176.77,176.72,2.8305]
[1729816460769,12.18489592,176.79,176.71,5.44]
[1729816461068,12.18489592,176.77,176.69,1.1808]
[1729816461462,2.8299,176.76,176.71,2.8307]
[1729816461861,12.18489592,176.77,176.69,1.1808]
[1729816462068,2.8302,176.75,176.71,2.8307]
[1729816463568,2.8302,176.75,176.7,2.8308]
[1729816463772,2.8302,176.75,176.69,1.1808]
[1729816465378,2.8302,176.75,176.71,2.8307]
[1729816465879,12.18489592,176.79,176.73,2.8303]
[1729816466576,12.18489592,176.79,176.7,1.13163]
[1729816467475,2.8296,176.78,176.73,2.8303]
[1729816470477,2.8298,176.77,176.73,2.8303]
[1729816470877,12.18489592,176.79,176.69,2.31243]
[1729816471187,2.8303,176.74,176.69,2.31243]
[1729816471393,12.18489592,176.79,176.69,2.31243]
[1729816471680,2.8298,176.77,176.71,2.8307]
[1729816471884,12.18489592,176.79,176.69,2.31243]
[1729816472586,2.83,176.76,176.69,2.31243]
[1729816473079,2.83,176.76,176.71,2.8307]
[1729816474990,12.18489592,176.79,176.72,2.8306]
[1729816475198,12.18489592,176.76,176.69,1.1808]
[1729816475488,2.8307,176.71,176.67,2.8313]
[1729816475888,12.18489592,176.74,176.64,5.14]
[1729816476490,12.18489592,176.74,176.64,6.27163]
[1729816476682,2.8307,176.71,176.67,2.8313]
[1729816477484,12.18489592,176.74,176.64,18.45652592]
[1729816477686,3.6779,176.77,176.66,12.18489592]
[1729816477687,12.18489592,176.76,176.66,12.18489592]
[1729816477992,12.18489592,176.76,176.66,13.31652592]
[1729816478189,2.8301,176.75,176.66,13.31652592]
[1729816478391,2.8301,176.75,176.67,5.14]
[1729816478591,2.8301,176.75,176.7,2.8307]
[1729816479394,2.8301,176.75,176.71,2.8307]
[1729816480798,2.8301,176.75,176.67,6.27163]
[1729816482307,2.8301,176.75,176.71,2.8307]
[1729816483696,2.8301,176.75,176.72,2.8305]
[1729816483997,5.14,176.8,176.69,1.13163]
[1729816484199,2.8299,176.77,176.69,1.13163]
[1729816484391,5.14,176.8,176.71,12.18489592]
[1729816484598,12.18489592,176.81,176.71,12.18489592]
[1729816484797,2.8296,176.79,176.72,5.14]
[1729816485295,2.8296,176.79,176.73,12.18489592]
[1729816485593,2.8296,176.79,176.73,13.42189592]
[1729816486191,2.8296,176.79,176.75,2.8299]
[1729816487886,100.61014142,176.85,176.73,2.36863]
[1729816488099,2.829,176.82,176.78,2.8295]
[1729816489101,2.829,176.82,176.75,12.18489592]
[1729816489300,2.829,176.82,176.78,2.8296]
[1729816489601,2.8292,176.81,176.78,2.8296]
[1729816490992,12.18489592,176.84,176.75,12.18489592]
[1729816491192,2.8294,176.8,176.74,2.3808]
[1729816491897,2.8294,176.8,176.76,2.8298]
[1729816492398,2.8296,176.79,176.75,2.83]
[1729816493194,12.18489592,176.84,176.75,2.83]
[1729816493396,2.8295,176.79,176.75,2.83]
[1729816493999,12.18489592,176.84,176.74,2.3808]
[1729816494204,2.8294,176.8,176.76,2.8299]
[1729816494802,12.18489592,176.84,176.75,12.18489592]
[1729816494999,2.8292,176.81,176.75,12.18489592]
[1729816495203,5.14,176.85,176.75,12.18489592]
[1729816495400,2.8288,176.84,176.8,2.8292]
[1729816496001,12.18489592,176.91,176.8,12.18489592]
[1729816496207,105.72951049,176.9,176.8,12.18489592]
[1729816497298,2.8284,176.86,176.82,2.8289]
[1729816498000,105.72951049,176.9,176.8,12.18489592]
[1729816498001,100.58951049,176.9,176.8,12.18489592]
[1729816498199,100.58951049,176.9,176.82,12.18489592]
[1729816498397,100.58951049,176.9,176.84,12.18489592]
[1729816498599,2.8278,176.9,176.85,2.8283]
[1729816500607,2.828,176.89,176.83,4.86]
[1729816500800,12.18489592,176.92,176.83,4.86]
[1729816500995,2.8285,176.86,176.81,2.8291]
[1729816502005,2.8285,176.86,176.82,2.8289]
[1729816502701,2.8285,176.85,176.82,2.8289]
[1729816502907,12.18489592,176.88,176.8,8.8889]
[1729816503302,12.18489592,176.88,176.8,1.1997]
[1729816503510,12.18489592,176.86,176.78,7.6895]
[1729816503713,12.18489592,176.86,176.78,4.86]
[1729816504004,2.8289,176.83,176.78,4.86]
[1729816505314,2.8289,176.83,176.79,2.8294]
[1729816506813,12.18489592,176.86,176.78,4.86]
[1729816507807,2.8289,176.83,176.79,2.8294]
[1729816508011,12.18489592,176.9,176.8,12.18489592]
[1729816508305,17.04489592,176.9,176.8,12.18489592]
[1729816508612,1.2253,176.93,176.84,12.18489592]
[1729816508808,13.41019592,176.93,176.85,4.86]
[1729816509004,2.8278,176.9,176.85,4.86]
[1729816509202,12.18489592,176.91,176.82,4.86]
[1729816509815,2.8283,176.87,176.83,2.8287]
[1729816511012,2.8277,176.9,176.82,17.04489592]
[1729816511213,13.41019592,176.93,176.82,18.17611592]
[1729816511412,2.8275,176.91,176.87,2.8281]
[1729816511813,12.18489592,176.93,176.82,17.04489592]
[1729816512009,12.18489592,176.9,176.82,4.86]
[1729816512511,12.18489592,176.88,176.82,7.6888]
[1729816512707,12.18489592,176.88,176.81,1.2248]
[1729816512911,12.18489592,176.88,176.79,15.78031592]
[1729816512912,12.18489592,176.88,176.79,19.50909592]
[1729816513612,2.8287,176.84,176.8,2.8292]
[1729816517620,100.56046052,176.94,176.83,12.18489592]
[1729816517621,4.86,176.92,176.83,12.18489592]
[1729816518015,2.8282,176.87,176.83,15.01359592]
[1729816518516,2.8282,176.87,176.83,2.8287]
[1729816518718,2.8282,176.87,176.81,12.18489592]
[1729816518921,2.8282,176.87,176.84,2.8286]
[1729816519123,4.86,176.92,176.84,2.8286]
[1729816519323,2.828,176.88,176.84,2.8286]
[1729816520015,2.8283,176.87,176.83,2.8288]
[1729816521014,2.8283,176.87,176.82,4.86]
[1729816521220,2.8284,176.86,176.81,12.18489592]
[1729816521421,2.8284,176.86,176.82,4.86]
[1729816521622,2.8284,176.86,176.83,2.8288]
[1729816523427,2.8284,176.86,176.82,7.6889]
[1729816524328,12.18489592,176.91,176.81,4.86]
[1729816524728,2.828,176.88,176.81,7.689]
[1729816524922,12.18489592,176.91,176.81,7.689]
[1729816525127,12.18489592,176.91,176.81,4.86]
[1729816525528,2.8285,176.86,176.82,2.8288]
[1729816526224,4.86,176.93,176.81,4.86]
[1729816526225,2.8289,176.83,176.81,4.86]
[1729816527131,2.8289,176.83,176.79,7.6893]
[1729816527320,2.8289,176.83,176.8,2.8292]
[1729816527523,2.8289,176.83,176.78,4.86]
[1729816527719,12.18489592,176.86,176.78,4.86]
[1729816528125,12.18489592,176.86,176.77,4.64]
[1729816528526,2.8289,176.83,176.79,2.8293]
[1729816528725,2.8289,176.83,176.77,16.82489592]
[1729816528933,2.8289,176.83,176.77,17.95611592]
[1729816529226,19.49279592,176.88,176.77,17.95611592]
[1729816529434,2.8287,176.84,176.8,2.8292]
[1729816529631,19.49279592,176.88,176.8,2.8292]
[1729816530636,12.18489592,176.84,176.78,2.8296]
[1729816531030,12.18489592,176.84,176.73,3.6923]
[1729816531031,2.8294,176.8,176.73,3.6923]
[1729816531231,12.18489592,176.82,176.76,2.8299]
[1729816531731,2.8297,176.78,176.74,4.64]
[1729816532327,2.8299,176.77,176.73,2.8303]
[1729816533129,12.18489592,176.8,176.72,4.64]
[1729816533425,2.83,176.76,176.71,2.8306]
[1729816533630,16.82489592,176.8,176.7,4.64]
[1729816533834,2.8303,176.74,176.7,2.8308]
[1729816536828,2.8301,176.75,176.71,2.8307]
[1729816539734,2.8303,176.74,176.7,2.8309]
[1729816540229,2.8305,176.73,176.69,2.8309]
[1729816540430,12.18489592,176.75,176.69,2.8309]
[1729816541733,12.18489592,176.75,176.68,4.0612]
[1729816542040,12.18489592,176.75,176.68,2.8312]
[1729816542243,2.8304,176.73,176.68,2.8312]
[1729816542432,12.18489592,176.75,176.68,2.8312]
[1729816543331,12.18489592,176.75,176.63,15.69099592]
[1729816543533,12.18489592,176.75,176.66,2.8314]
[1729816543733,12.18489592,176.75,176.64,4.64]
[1729816544237,4.64,176.76,176.65,12.18489592]
[1729816544745,4.64,176.76,176.65,13.31710592]
[1729816545044,2.8303,176.74,176.65,13.31710592]
[1729816545240,16.82489592,176.77,176.65,1.13221]
[1729816545445,16.82489592,176.77,176.68,12.18489592]
[1729816546238,2.8303,176.74,176.7,2.8308]
[1729816547046,2.8301,176.76,176.68,12.18489592]
[1729816547346,2.8301,176.76,176.68,16.82489592]
[1729816547642,16.82489592,176.77,176.68,16.82489592]
[1729816548241,16.82489592,176.77,176.7,2.8307]
[1729816548639,2.8304,176.74,176.7,2.8307]
[1729816549651,16.82489592,176.77,176.69,2.8309]
[1729816550145,16.82489592,176.77,176.7,2.8308]
[1729816550146,2.8304,176.74,176.7,2.8308]
[1729816550351,16.82489592,176.77,176.7,2.8308]
[1729816550736,2.8303,176.74,176.7,2.8308]
[1729816552242,2.8303,176.74,176.71,2.8307]
[1729816552446,16.82489592,176.77,176.71,2.8307]
[1729816552447,2.8301,176.75,176.71,2.8307]
[1729816552748,16.82489592,176.77,176.71,2.8307]
[1729816553647,2.83,176.76,176.71,2.8307]
[1729816553852,16.82489592,176.77,176.71,2.8307]
[1729816554246,2.8302,176.75,176.71,2.8307]
[1729816555054,16.82489592,176.77,176.68,4.64]
[1729816555354,2.83,176.76,176.72,2.8304]
[1729816555848,2.8301,176.75,176.72,2.8304]
[1729816560459,7.83096467,176.76,176.72,2.8304]
[1729816560756,5.6425,176.8,176.74,2.8301]
[1729816560959,5.6425,176.8,176.72,7.83096467]
[1729816560960,7.83096467,176.78,176.72,7.83096467]
[1729816561256,10.66066467,176.78,176.72,7.83096467]
[1729816561653,7.83096467,176.81,176.75,7.83096467]
[1729816561850,1.2632,176.87,176.77,7.83096467]
[1729816561851,4.44,176.83,176.77,7.83096467]
[1729816562051,12.27096467,176.83,176.77,7.83096467]
[1729816562354,7.83096467,176.8,176.76,7.83096467]
[1729816563356,10.66026467,176.8,176.77,2.8297]
[1729816563960,7.83096467,176.8,176.77,2.8297]
[1729816566160,10.66026467,176.8,176.77,2.8297]
[1729816567354,7.83096467,176.78,176.71,1.13221]
[1729816567559,4.44,176.83,176.72,4.44]
[1729816567560,7.83096467,176.76,176.72,4.44]
[1729816568361,7.83096467,176.76,176.73,2.8304]
[1729816569460,10.66106467,176.75,176.72,4.44]
[1729816569655,7.83096467,176.75,176.71,2.8307]
[1729816569856,7.83096467,176.75,176.7,1.2181]
[1729816570064,10.66136467,176.73,176.69,10.66186467]
[1729816570656,2.8304,176.73,176.69,10.66186467]
[1729816570858,7.83096467,176.75,176.7,2.8309]
[1729816571054,2.8303,176.74,176.7,2.8309]
[1729816571562,4.44,176.79,176.72,7.83096467]
[1729816571757,2.8298,176.77,176.73,10.66126467]
[1729816571956,2.8298,176.77,176.74,7.83096467]
[1729816573359,7.83096467,176.8,176.74,7.83096467]
[1729816573558,7.83096467,176.82,176.76,7.83096467]
[1729816573760,7.83096467,176.82,176.77,7.83096467]
[1729816573961,2.8294,176.8,176.77,7.83096467]
[1729816574267,105.06140473,176.83,176.73,14.6025042]
[1729816574768,2.8293,176.8,176.75,2.8299]
[1729816575360,2.8294,176.79,176.75,2.8299]
[1729816575757,2.8294,176.79,176.76,2.8299]
[1729816577669,2.8293,176.8,176.77,2.8297]
[1729816578270,2.8293,176.8,176.76,7.2699]
[1729816579056,2.8291,176.82,176.77,2.8296]
[1729816579370,2.8291,176.82,176.76,4.44]
[1729816579865,2.8291,176.82,176.78,2.8295]
[1729816580063,2.8291,176.81,176.78,2.8295]
[1729816580263,2.8291,176.81,176.76,4.44]
[1729816580662,2.8291,176.81,176.77,2.8296]
[1729816582068,2.8291,176.81,176.78,2.8296]
[1729816583171,2.829,176.82,176.78,2.8296]
[1729816583366,13.3838942,176.87,176.76,4.44]
[1729816583668,13.3838942,176.87,176.78,12.2279942]
[1729816584057,2.8288,176.83,176.8,2.8292]
[1729816584457,13.3838942,176.87,176.75,1.13221]
[1729816584458,12.2279942,176.89,176.75,1.13221]
[1729816584658,4.44,176.91,176.82,12.2279942]
[1729816584874,4.44,176.91,176.82,16.6679942]
[1729816585370,4.44,176.91,176.84,2.8286]
[1729816585371,2.8281,176.88,176.84,2.8286]
[1729816585573,4.44,176.91,176.84,2.8286]
[1729816586269,2.828,176.88,176.85,2.8284]
[1729816587167,2.828,176.88,176.82,17.8002042]
[1729816587365,2.8282,176.87,176.84,2.8286]
[1729816588867,4.44,176.93,176.84,2.8286]
[1729816589067,2.828,176.88,176.84,2.8286]
[1729816591183,4.44,176.93,176.85,2.8284]
[1729816593375,2.828,176.89,176.85,2.8284]
[1729816595482,4.44,176.93,176.85,2.8284]
[1729816595683,2.828,176.88,176.85,2.8284]
[1729816596284,2.828,176.88,176.86,7.81729457]
[1729816608386,2.8279,176.89,176.86,7.81729457]
[1729816608588,2.8279,176.89,176.88,7.81729457]
[1729816611792,5.5399,176.94,176.88,7.81729457]
[1729816612093,2.8277,176.9,176.88,7.81729457]
[1729816612297,13.35719457,176.94,176.88,7.81729457]
[1729816612484,2.8276,176.91,176.9,7.81729457]
[1729816614993,2.8272,176.94,176.9,10.64489457]
[1729816615295,2.8272,176.94,176.93,7.81729457]
[1729816616095,2.8273,176.93,176.91,7.81729457]
[1729816618198,7.81729457,176.97,176.91,7.81729457]
[1729816618399,2.8278,176.89,176.86,2.8283]
[1729816618601,2.8278,176.89,176.86,6.9883]
[1729816618806,2.8278,176.89,176.87,7.81729457]
[1729816619801,7.81729457,176.92,176.87,7.81729457]
[1729816620000,2.8277,176.9,176.88,7.81729457]
[1729816621096,2.8276,176.91,176.88,10.64529457]
[1729816621302,4.16,176.94,176.9,7.81729457]
[1729816622303,2.8275,176.92,176.9,7.81729457]
[1729816624805,2.8275,176.91,176.9,7.81729457]
[1729816630117,2.8275,176.91,176.88,2.8279]
[1729816630319,2.8275,176.91,176.9,7.81729457]
[1729816631115,5.3846,177.0,176.9,11.97729457]
[1729816631322,4.16,177.0,176.95,7.81729457]
[1729816631524,2.8264,176.98,176.97,7.81729457]
[1729816632419,4.16,177.05,176.97,7.81729457]
[1729816632615,4.16,177.05,177.01,7.81729457]
[1729816632819,11.97729457,177.05,177.0,7.81729457]
[1729816633030,2.8259,177.01,177.0,7.81729457]
[1729816634520,7.81729457,177.05,176.95,4.0281]
[1729816634725,2.8263,176.99,176.95,4.0281]
[1729816634925,2.8263,176.99,176.98,7.81729457]
[1729816635323,2.826,177.01,176.98,7.81729457]
[1729816635523,2.826,177.01,176.97,2.8265]
[1729816635524,2.826,177.01,177.0,7.81729457]
[1729816636325,11.97729457,177.06,177.0,7.81729457]
[1729816636326,4.16,177.06,177.0,7.81729457]
[1729816636528,4.16,177.06,177.02,7.81729457]
[1729816636822,7.81729457,177.07,177.02,7.81729457]
[1729816637026,2.8256,177.03,177.02,7.81729457]
[1729816637222,1.2809,177.11,177.02,7.81729457]
[1729816637524,1.2809,177.11,176.98,4.16]
[1729816637525,2.8254,177.05,177.04,7.81729457]
[1729816638024,5.6472,177.16,177.04,7.81729457]
[1729816638025,9.03579457,177.12,177.04,7.81729457]
[1729816638233,2.8248,177.08,177.07,7.81729457]
[1729816639126,4.16,177.14,177.07,7.81729457]
[1729816639332,1.2499,177.15,177.11,7.81729457]
[1729816639333,13.22719457,177.15,177.11,7.81729457]
[1729816639629,4.16,177.16,177.11,7.81729457]
[1729816640126,7.81729457,177.17,177.11,7.81729457]
[1729816640326,11.97729457,177.17,177.11,7.81729457]
[1729816641321,2.8242,177.12,177.11,7.81729457]
[1729816642027,7.81729457,177.12,177.07,7.81729457]
[1729816642237,7.81729457,177.09,177.04,4.16]
[1729816642530,2.8253,177.05,177.04,4.16]
[1729816643232,2.8252,177.06,177.04,4.16]
[1729816643738,2.8252,177.06,177.05,7.81729457]
[1729816654037,7.81729457,177.07,177.03,7.81729457]
[1729816654245,7.81729457,177.07,176.98,1.2673]
[1729816654435,7.81729457,177.06,177.01,7.81729457]
[1729816654937,2.8258,177.02,177.01,7.81729457]
[1729816655735,2.8257,177.03,177.01,7.81729457]
[1729816657529,2.8258,177.02,177.01,7.81729457]
[1729816659944,2.8256,177.03,177.01,7.81729457]
[1729816660138,7.81729457,177.07,177.02,7.81729457]
[1729816660339,5.24874398,177.12,177.04,7.81729457]
[1729816660340,4.16,177.1,177.04,7.81729457]
[1729816660544,2.8252,177.06,177.04,7.81729457]
[1729816661343,2.8251,177.07,177.04,7.81729457]
[1729816662287,2.8251,177.07,177.06,7.81729457]
[1729816663154,2.8246,177.08,177.06,7.81729457]
[1729816663378,4.16,177.1,177.06,7.81729457]
[1729816666167,2.8244,177.09,177.06,7.81729457]
[1729816666368,4.16,177.1,177.06,7.81729457]
[1729816667172,2.8244,177.09,177.06,7.81729457]
[1729816667365,4.16,177.1,177.06,7.81729457]
[1729816667570,7.81729457,177.11,177.06,7.81729457]
[1729816668073,7.81729457,177.12,177.06,7.81729457]
[1729816668266,2.8247,177.08,177.06,7.81729457]
[1729816669577,2.8247,177.07,177.06,7.81729457]
[1729816673354,4.16,177.13,176.99,2.4447]
[1729816673355,2.8248,177.06,177.01,1.09975]
[1729816673543,2.8248,177.06,176.99,2.4447]
[1729816673544,7.81729457,177.07,177.02,11.97729457]
[1729816673746,7.81729457,177.1,177.03,7.81729457]
[1729816674791,2.8252,177.04,177.03,7.81729457]
[1729816674981,2.8252,177.04,177.02,11.97729457]
[1729816675166,7.81729457,177.07,177.02,11.97729457]
[1729816675486,4.16,177.13,176.99,2.4447]
[1729816675487,2.8255,177.02,176.99,2.4447]
[1729816675668,2.8255,177.02,176.99,14.42199457]
[1729816676179,2.8255,177.02,176.98,4.0934]
[1729816676180,2.826,176.99,176.95,2.8265]
[1729816676490,2.826,176.99,176.97,7.81729457]
[1729816677567,2.826,176.99,176.96,4.16]
[1729816677868,2.8258,177.0,176.98,7.81729457]
[1729816679954,7.81729457,177.04,176.98,7.81729457]
[1729816680150,7.81729457,177.02,176.98,7.81729457]
[1729816680968,2.8259,177.0,176.98,7.81729457]
[1729816681967,2.8259,177.0,176.99,7.81729457]
[1729816685673,2.8259,177.0,176.97,2.8263]
[1729816685856,2.8259,177.0,176.98,7.81729457]
[1729816689068,3.6405,177.1,176.99,7.81729457]
[1729816689264,7.81729457,177.07,177.02,7.81729457]
[1729816689568,2.8249,177.06,177.02,7.81729457]
[1729816689870,11.97729457,177.09,177.03,7.81729457]
[1729816690166,2.8252,177.04,177.03,7.81729457]
[1729816692663,3.6405,177.1,177.03,7.81729457]
[1729816692864,13.19329457,177.1,177.05,7.81729457]
[1729816693070,7.81729457,177.08,177.02,7.81729457]
[1729816693268,7.81729457,177.04,176.98,1.1585]
[1729816693471,2.8261,176.99,176.97,4.16]
[1729816693668,7.81729457,176.99,176.92,2.40432]
[1729816693869,2.8266,176.96,176.92,2.8271]
[1729816694060,2.8266,176.96,176.92,10.64439457]
[1729816694265,7.81729457,176.98,176.89,4.16]
[1729816694464,7.81729457,176.96,176.91,7.81729457]
[1729816695170,2.827,176.93,176.89,4.16]
[1729816695372,2.827,176.93,176.9,7.81729457]
[1729816698078,2.827,176.93,176.89,4.16]
[1729816698275,2.827,176.93,176.88,7.81729457]
[1729816698575,7.81729457,176.94,176.88,7.81729457]
[1729816699271,2.8272,176.92,176.89,1.41398333]
[1729816700180,2.8274,176.9,176.89,1.41398333]
[1729816702380,10.64469457,176.9,176.89,1.41398333]
[1729816704186,10.64469457,176.9,176.89,2.82803373]
[1729816705186,10.64469457,176.9,176.89,1.41398333]
[1729816708088,7.81729457,176.9,176.87,1.41419986]
[1729816708293,2.8276,176.89,176.87,1.41419986]
[1729816709390,2.8276,176.89,176.85,10.64539457]
[1729816710099,7.81729457,176.9,176.85,10.64539457]
[1729816710294,7.81729457,176.87,176.82,2.5145]
[1729816710498,2.426,176.96,176.85,4.97607733]
[1729816710499,4.16,176.9,176.85,4.97607733]
[1729816710695,7.81729457,176.86,176.85,4.97607733]
[1729816711298,10.64529457,176.86,176.85,4.97607733]
[1729816711487,7.81729457,176.86,176.81,2.8287]
[1729816713300,2.8283,176.85,176.81,2.8287]
[1729816714094,2.8283,176.85,176.81,10.64599457]
[1729816714301,11.97729457,176.89,176.83,2.8285]
[1729816714597,11.97729457,176.89,176.82,7.81729457]
[1729816714791,2.8279,176.87,176.82,10.64589457]
[1729816714991,11.97729457,176.89,176.82,10.64589457]
[1729816716197,7.81729457,176.87,176.82,10.64589457]
[1729816716394,2.8282,176.86,176.82,10.64589457]
[1729816716599,7.81729457,176.85,176.8,11.49689457]
[1729816716800,2.8281,176.86,176.82,7.81729457]
[1729816717303,2.8281,176.86,176.82,10.64589457]
[1729816717705,2.8281,176.86,176.82,7.81729457]
[1729816717906,2.8281,176.86,176.83,2.8285]
[1729816718404,2.8281,176.86,176.82,10.64589457]
[1729816721301,7.81729457,176.84,176.81,2.8288]
[1729816721502,7.81729457,176.83,176.8,1.2125]
[1729816721703,7.81729457,176.83,176.8,1.41438235]
[1729816721913,7.81729457,176.81,176.8,1.41438235]
[1729816722406,10.64609457,176.81,176.8,1.41438235]
[1729816722607,10.64609457,176.81,176.77,2.8294]
[1729816723716,7.81729457,176.8,176.75,5.4255]
[1729816723900,7.81729457,176.8,176.75,13.24279457]
[1729816724406,10.64629457,176.8,176.76,2.8295]
[1729816724600,7.81729457,176.8,176.76,2.8295]
[1729816726109,7.81729457,176.8,176.75,9.08279457]
[1729816726895,7.81729457,176.8,176.75,7.81729457]
[1729816727295,2.8294,176.78,176.75,10.64699457]
[1729816727599,10.64669457,176.78,176.75,2.8297]
[1729816729605,7.81729457,176.77,176.71,1.2006]
[1729816729796,2.8298,176.76,176.72,2.8301]
[1729816730603,2.8299,176.75,176.71,11.84819457]
[1729816730807,2.8299,176.75,176.71,9.01789457]
[1729816731803,7.81729457,176.74,176.7,1.2311]
[1729816732004,7.81729457,176.73,176.68,11.97729457]
[1729816732608,4.16,176.76,176.68,14.80809457]
[1729816732609,2.8303,176.72,176.68,14.80809457]
[1729816733200,7.81729457,176.74,176.68,4.16]
[1729816733401,4.16,176.76,176.65,7.81729457]
[1729816733402,7.81729457,176.71,176.65,7.81729457]
[1729816733606,7.81729457,176.69,176.64,7.81729457]
[1729816734799,2.8309,176.68,176.64,10.64869457]
[1729816736931,2.8309,176.68,176.65,2.8314]
[1729816737912,2.8309,176.68,176.64,7.81729457]
[1729816738106,2.8309,176.68,176.64,10.64869457]
[1729816739115,2.8309,176.68,176.64,7.81729457]
[1729816739410,7.81729457,176.69,176.65,2.8314]
[1729816739610,10.64809457,176.69,176.65,2.8314]
[1729816740612,2.8308,176.69,176.65,2.8314]
[1729816740812,2.831,176.68,176.64,2.8314]